[Event "Titled Tuesday Blitz April 11 Late 2023"]
[White "Antonova, Nadezhda"]
[Black "Cori T., Deysi"]
[WhiteFideId "14700182"]
[BlackFideId "3801934"]
[WhiteElo "1765"]
[BlackElo "2292"]
[Result "0-1"]
[Round "01"]
[TimeControl "180+2"]
[Date "2023.04.11"]
[WhiteClock "0:00:04"]
[BlackClock "0:00:05"]

1. Nf3 {[%clk 0:02:52]}  Nf6 {[%clk 0:02:58]} 2. b3 {[%clk 0:02:52]}  g6 {[%clk 0:02:58]} 3. Bb2 {[%clk 0:02:52]}  Bg7 {[%clk 0:02:59]} 4. g3 {[%clk 0:02:52]}  b6 {[%clk 0:02:59]} 5. Bg2 {[%clk 0:02:52]}  Bb7 {[%clk 0:02:59]} 6. O-O {[%clk 0:02:53]}  c5 {[%clk 0:02:59]} 7. c4 {[%clk 0:02:53]}  O-O {[%clk 0:02:59]} 8. e3 {[%clk 0:02:53]}  d5 {[%clk 0:02:58]} 9. cxd5 {[%clk 0:02:50]}  Bxd5 {[%clk 0:02:57]} 10. Nc3 {[%clk 0:02:50]}  Bb7 {[%clk 0:02:56]} 11. d4 {[%clk 0:02:51]}  Nbd7 {[%clk 0:02:55]} 12. Qe2 {[%clk 0:02:39]}  Rc8 {[%clk 0:02:48]} 13. Rfd1 {[%clk 0:02:38]}  Qc7 {[%clk 0:02:48]} 14. Rac1 {[%clk 0:02:38]}  Qb8 {[%clk 0:02:48]} 15. d5 {[%clk 0:02:18]}  Rfd8 {[%clk 0:02:09]} 16. e4 {[%clk 0:02:13]}  Ne8 {[%clk 0:02:09]} 17. a4 {[%clk 0:02:03]}  a6 {[%clk 0:02:07]} 18. Nd2 {[%clk 0:01:40]}  Nc7 {[%clk 0:01:19]} 19. Nc4 {[%clk 0:01:36]}  b5 {[%clk 0:01:18]} 20. Na5 {[%clk 0:01:30]}  Ba8 {[%clk 0:01:15]} 21. Nc6 {[%clk 0:01:09]}  Bxc6 {[%clk 0:01:07]} 22. dxc6 {[%clk 0:01:10]}  Ne5 {[%clk 0:00:52]} 23. Nd5 {[%clk 0:01:09]}  Nxd5 {[%clk 0:00:47]} 24. exd5 {[%clk 0:01:08]}  bxa4 {[%clk 0:00:47]} 25. bxa4 {[%clk 0:00:50]}  Nf3+ {[%clk 0:00:32]} 26. Qxf3 {[%clk 0:00:45]}  Qxb2 {[%clk 0:00:31]} 27. Rxc5 {[%clk 0:00:44]}  Be5 {[%clk 0:00:20]} 28. Rcc1 {[%clk 0:00:27]}  Rc7 {[%clk 0:00:19]} 29. Rb1 {[%clk 0:00:26]}  Qa2 {[%clk 0:00:18]} 30. Qb3 {[%clk 0:00:25]}  Qxb3 {[%clk 0:00:17]} 31. Rxb3 {[%clk 0:00:25]}  Rxc6 {[%clk 0:00:18]} 32. dxc6 {[%clk 0:00:22]}  Rxd1+ {[%clk 0:00:17]} 33. Bf1 {[%clk 0:00:22]}  Rc1 {[%clk 0:00:17]} 34. Rb6 {[%clk 0:00:21]}  a5 {[%clk 0:00:17]} 35. Kg2 {[%clk 0:00:19]}  Kg7 {[%clk 0:00:16]} 36. Ra6 {[%clk 0:00:14]}  Bc7 {[%clk 0:00:12]} 37. Bb5 {[%clk 0:00:13]}  Rc2 {[%clk 0:00:11]} 38. Kf3 {[%clk 0:00:10]}  h5 {[%clk 0:00:10]} 39. h3 {[%clk 0:00:09]}  g5 {[%clk 0:00:09]} 40. Ke3 {[%clk 0:00:09]}  Bd6 {[%clk 0:00:08]} 41. f4 {[%clk 0:00:07]}  h4 {[%clk 0:00:07]} 42. fxg5 {[%clk 0:00:06]}  hxg3 {[%clk 0:00:07]} 43. Rxa5 {[%clk 0:00:06]}  g2 {[%clk 0:00:07]} 44. Bd3 {[%clk 0:00:05]}  g1=Q+ {[%clk 0:00:05]} 45. Ke4 {[%clk 0:00:04]}  Qg2+ {[%clk 0:00:05]} 46. Kd4 {[%clk 0:00:04]}  Qf2+ {[%clk 0:00:04]} 47. Ke4 {[%clk 0:00:03]}  Qf4+ {[%clk 0:00:04]} 48. Kd5 {[%clk 0:00:04]}  Qe5# {[%clk 0:00:05]} 0-1


[Site "https://www.chess.com"]

[Event "Titled Tuesday Blitz April 11 Late 2023"]
[White "Vujcic, Milena"]
[Black "Dobrikov, Marco"]
[WhiteFideId "954748"]
[BlackFideId "12950378"]
[WhiteElo "1882"]
[BlackElo "2296"]
[Result "0-1"]
[Round "01"]
[TimeControl "180+2"]
[Date "2023.04.11"]
[WhiteClock "0:00:00"]
[BlackClock "0:00:01"]

1. e4 {[%clk 0:00:01]}  g6 {[%clk 0:00:01]} 2. d4 {[%clk 0:00:01]}  Bg7 {[%clk 0:00:01]} 3. Nf3 {[%clk 0:00:01]}  d6 {[%clk 0:00:01]} 4. h3 {[%clk 0:00:01]}  Nf6 {[%clk 0:00:01]} 5. Nc3 {[%clk 0:00:01]}  O-O {[%clk 0:00:01]} 6. Be3 {[%clk 0:00:01]}  a6 {[%clk 0:00:01]} 7. a4 {[%clk 0:00:01]}  e5 {[%clk 0:00:01]} 8. Bc4 {[%clk 0:00:01]}  Nc6 {[%clk 0:00:01]} 9. O-O {[%clk 0:00:01]}  h6 {[%clk 0:00:01]} 10. Qd2 {[%clk 0:00:01]}  Kh7 {[%clk 0:00:01]} 11. Rad1 {[%clk 0:00:01]}  Qe7 {[%clk 0:00:01]} 12. Nd5 {[%clk 0:00:01]}  Nxd5 {[%clk 0:00:01]} 13. exd5 {[%clk 0:00:01]}  e4 {[%clk 0:00:01]} 14. Nh2 {[%clk 0:00:01]}  Nb8 {[%clk 0:00:01]} 15. Be2 {[%clk 0:00:01]}  Nd7 {[%clk 0:00:01]} 16. c4 {[%clk 0:00:01]}  f5 {[%clk 0:00:01]} 17. f3 {[%clk 0:00:01]}  Nf6 {[%clk 0:00:01]} 18. Kh1 {[%clk 0:00:00]}  Nh5 {[%clk 0:00:01]} 19. Bf2 {[%clk 0:00:00]}  e3 {[%clk 0:00:01]} 20. Bxe3 {[%clk 0:00:00]}  Ng3+ {[%clk 0:00:01]} 21. Kg1 {[%clk 0:00:00]}  f4 {[%clk 0:00:01]} 22. Bf2 {[%clk 0:00:00]}  Nxe2+ {[%clk 0:00:01]} 0-1


[Site "https://www.chess.com"]

[Event "Titled Tuesday Blitz April 11 Late 2023"]
[White "Zhang, Derek"]
[Black "Stanisz, Patryk"]
[WhiteFideId "2087871"]
[BlackFideId "1123106"]
[WhiteElo "2087"]
[BlackElo "2069"]
[Result "1-0"]
[Round "01"]
[TimeControl "180+2"]
[Date "2023.04.11"]
[WhiteClock "0:00:00"]
[BlackClock "0:00:00"]

1. Nf3 {[%clk 0:00:01]}  d5 {[%clk 0:00:01]} 2. c4 {[%clk 0:00:01]}  c6 {[%clk 0:00:01]} 3. e3 {[%clk 0:00:01]}  e6 {[%clk 0:00:01]} 4. Nc3 {[%clk 0:00:01]}  Nf6 {[%clk 0:00:01]} 5. b3 {[%clk 0:00:01]}  Bd6 {[%clk 0:00:01]} 6. Bb2 {[%clk 0:00:01]}  O-O {[%clk 0:00:01]} 7. Qc2 {[%clk 0:00:01]}  Qe7 {[%clk 0:00:01]} 8. g4 {[%clk 0:00:01]}  Na6 {[%clk 0:00:01]} 9. g5 {[%clk 0:00:01]}  Nd7 {[%clk 0:00:01]} 10. h4 {[%clk 0:00:01]}  e5 {[%clk 0:00:01]} 11. cxd5 {[%clk 0:00:01]}  Nb4 {[%clk 0:00:01]} 12. Qb1 {[%clk 0:00:01]}  Nxd5 {[%clk 0:00:01]} 13. Ne4 {[%clk 0:00:01]}  Bc7 {[%clk 0:00:01]} 14. h5 {[%clk 0:00:01]}  Rd8 {[%clk 0:00:01]} 15. Nh4 {[%clk 0:00:01]}  Nf8 {[%clk 0:00:01]} 16. h6 {[%clk 0:00:01]}  g6 {[%clk 0:00:00]} 17. Bc4 {[%clk 0:00:01]}  Be6 {[%clk 0:00:00]} 18. Bxd5 {[%clk 0:00:01]}  Bxd5 {[%clk 0:00:00]} 19. Nf6+ {[%clk 0:00:01]}  Kh8 {[%clk 0:00:00]} 20. e4 {[%clk 0:00:01]}  Be6 {[%clk 0:00:00]} 21. f4 {[%clk 0:00:01]}  Qd6 {[%clk 0:00:00]} 22. Qc2 {[%clk 0:00:01]}  Qd3 {[%clk 0:00:00]} 23. O-O-O {[%clk 0:00:01]}  Qxc2+ {[%clk 0:00:00]} 24. Kxc2 {[%clk 0:00:01]}  Nd7 {[%clk 0:00:00]} 25. f5 {[%clk 0:00:01]}  Nxf6 {[%clk 0:00:00]} 26. gxf6 {[%clk 0:00:00]}  Bd7 {[%clk 0:00:00]} 27. Rhg1 {[%clk 0:00:00]}  Be8 {[%clk 0:00:00]} 28. Nf3 {[%clk 0:00:00]}  Bb6 {[%clk 0:00:00]} 29. Rg2 {[%clk 0:00:00]}  Bd4 {[%clk 0:00:00]} 30. Nxe5 {[%clk 0:00:00]}  c5 {[%clk 0:00:00]} 31. Nf3 {[%clk 0:00:00]}  Bxb2 {[%clk 0:00:00]} 32. Kxb2 {[%clk 0:00:00]}  Bb5 {[%clk 0:00:00]} 33. d4 {[%clk 0:00:00]}  cxd4 {[%clk 0:00:00]} 34. Rxd4 {[%clk 0:00:00]}  Bc6 {[%clk 0:00:00]} 35. Rgd2 {[%clk 0:00:00]}  Re8 {[%clk 0:00:00]} 36. Ng5 {[%clk 0:00:00]}  gxf5 {[%clk 0:00:00]} 37. Nxf7+ {[%clk 0:00:00]}  Kg8 {[%clk 0:00:00]} 38. Nd6 {[%clk 0:00:00]}  fxe4 {[%clk 0:00:00]} 39. f7+ {[%clk 0:00:00]}  Kf8 {[%clk 0:00:00]} 40. fxe8=Q+ {[%clk 0:00:00]}  Rxe8 {[%clk 0:00:00]} 41. Rf2+ {[%clk 0:00:00]} 1-0


[Site "https://www.chess.com"]

[Event "Titled Tuesday Blitz April 11 Late 2023"]
[White "Svicevic, Rastko"]
[Black "Klenburg, Michael"]
[WhiteFideId "916315"]
[BlackFideId "14102072"]
[WhiteElo "2071"]
[BlackElo "2396"]
[Result "0-1"]
[Round "01"]
[TimeControl "180+2"]
[Date "2023.04.11"]
[WhiteClock "0:00:00"]
[BlackClock "0:00:00"]

1. d4 {[%clk 0:00:01]}  d6 {[%clk 0:00:01]} 2. e4 {[%clk 0:00:01]}  Nf6 {[%clk 0:00:01]} 3. Nc3 {[%clk 0:00:01]}  g6 {[%clk 0:00:01]} 4. f4 {[%clk 0:00:01]}  Bg7 {[%clk 0:00:01]} 5. Nf3 {[%clk 0:00:01]}  c5 {[%clk 0:00:01]} 6. dxc5 {[%clk 0:00:01]}  Qa5 {[%clk 0:00:01]} 7. Bd2 {[%clk 0:00:01]}  Qxc5 {[%clk 0:00:01]} 8. Bb5+ {[%clk 0:00:01]}  Nc6 {[%clk 0:00:01]} 9. Qe2 {[%clk 0:00:01]}  O-O {[%clk 0:00:01]} 10. O-O-O {[%clk 0:00:01]}  a6 {[%clk 0:00:01]} 11. Be3 {[%clk 0:00:01]}  Qb4 {[%clk 0:00:01]} 12. a3 {[%clk 0:00:01]}  Qa5 {[%clk 0:00:01]} 13. Bxc6 {[%clk 0:00:01]}  bxc6 {[%clk 0:00:01]} 14. e5 {[%clk 0:00:01]}  Ng4 {[%clk 0:00:01]} 15. Bd2 {[%clk 0:00:01]}  Qb6 {[%clk 0:00:01]} 16. h3 {[%clk 0:00:01]}  Nh6 {[%clk 0:00:01]} 17. g4 {[%clk 0:00:01]}  Rb8 {[%clk 0:00:01]} 18. b3 {[%clk 0:00:01]}  Be6 {[%clk 0:00:01]} 19. Be3 {[%clk 0:00:00]}  Qa5 {[%clk 0:00:01]} 20. Kb2 {[%clk 0:00:00]}  c5 {[%clk 0:00:01]} 21. Nd5 {[%clk 0:00:00]}  Bxd5 {[%clk 0:00:01]} 22. Rxd5 {[%clk 0:00:00]}  Qc7 {[%clk 0:00:01]} 23. Rhd1 {[%clk 0:00:00]}  Kh8 {[%clk 0:00:01]} 24. Ka2 {[%clk 0:00:00]}  c4 {[%clk 0:00:01]} 25. exd6 {[%clk 0:00:00]}  cxb3+ {[%clk 0:00:01]} 26. cxb3 {[%clk 0:00:00]}  exd6 {[%clk 0:00:01]} 27. Bd4 {[%clk 0:00:00]}  Ng8 {[%clk 0:00:01]} 28. Qb2 {[%clk 0:00:00]}  f6 {[%clk 0:00:01]} 29. g5 {[%clk 0:00:00]}  Qc6 {[%clk 0:00:00]} 30. gxf6 {[%clk 0:00:00]}  Nxf6 {[%clk 0:00:00]} 31. Bc3 {[%clk 0:00:00]}  Rbc8 {[%clk 0:00:00]} 32. R5d3 {[%clk 0:00:00]}  Qb5 {[%clk 0:00:00]} 33. Ng5 {[%clk 0:00:00]}  Qf5 {[%clk 0:00:00]} 34. Rd5 {[%clk 0:00:00]}  Nxd5 {[%clk 0:00:00]} 35. Bxg7+ {[%clk 0:00:00]}  Kg8 {[%clk 0:00:00]} 36. Bxf8 {[%clk 0:00:00]}  Rxf8 {[%clk 0:00:00]} 37. Qd2 {[%clk 0:00:00]}  Nxf4 {[%clk 0:00:00]} 38. h4 {[%clk 0:00:00]}  d5 {[%clk 0:00:00]} 39. Rc1 {[%clk 0:00:00]}  Re8 {[%clk 0:00:00]} 40. Rc2 {[%clk 0:00:00]}  Re2 {[%clk 0:00:00]} 41. Qc3 {[%clk 0:00:00]}  Rxc2+ {[%clk 0:00:00]} 0-1


[Site "https://www.chess.com"]

[Event "Titled Tuesday Blitz April 11 Late 2023"]
[White "Martic, Ivan"]
[Black "Albuquerque Junior,Wellington S."]
[WhiteFideId "929301"]
[BlackFideId "2151480"]
[WhiteElo "2360"]
[BlackElo "2109"]
[Result "1-0"]
[Round "01"]
[TimeControl "180+2"]
[Date "2023.04.11"]
[WhiteClock "0:00:13"]
[BlackClock "0:00:16"]

1. d4 {[%clk 0:02:59]}  Nf6 {[%clk 0:02:58]} 2. Bg5 {[%clk 0:02:58]}  Ne4 {[%clk 0:02:58]} 3. Bf4 {[%clk 0:02:57]}  d5 {[%clk 0:02:54]} 4. e3 {[%clk 0:02:56]}  g6 {[%clk 0:02:50]} 5. Nd2 {[%clk 0:02:53]}  Nxd2 {[%clk 0:02:50]} 6. Qxd2 {[%clk 0:02:54]}  Bg7 {[%clk 0:02:50]} 7. Nf3 {[%clk 0:02:49]}  c6 {[%clk 0:02:50]} 8. h4 {[%clk 0:02:47]}  h6 {[%clk 0:02:50]} 9. Be5 {[%clk 0:02:46]}  Kf8 {[%clk 0:02:41]} 10. Be2 {[%clk 0:02:39]}  Nd7 {[%clk 0:02:40]} 11. Bg3 {[%clk 0:02:36]}  Nf6 {[%clk 0:02:38]} 12. Bd3 {[%clk 0:02:28]}  Bf5 {[%clk 0:02:30]} 13. Bf4 {[%clk 0:02:17]}  Bxd3 {[%clk 0:02:23]} 14. cxd3 {[%clk 0:02:17]}  Qb6 {[%clk 0:02:13]} 15. Rc1 {[%clk 0:02:13]}  a5 {[%clk 0:02:09]} 16. O-O {[%clk 0:02:09]}  Kg8 {[%clk 0:02:03]} 17. Ne5 {[%clk 0:02:07]}  e6 {[%clk 0:01:54]} 18. Rc3 {[%clk 0:02:04]}  Qd8 {[%clk 0:01:34]} 19. a4 {[%clk 0:02:00]}  Nd7 {[%clk 0:01:33]} 20. Nf3 {[%clk 0:01:54]}  Kh7 {[%clk 0:01:32]} 21. Rb3 {[%clk 0:01:48]}  Ra7 {[%clk 0:01:29]} 22. Re1 {[%clk 0:01:42]}  Re8 {[%clk 0:01:24]} 23. Bd6 {[%clk 0:01:40]}  Bf8 {[%clk 0:01:24]} 24. Bg3 {[%clk 0:01:33]}  Bg7 {[%clk 0:01:12]} 25. e4 {[%clk 0:01:27]}  Nf6 {[%clk 0:00:45]} 26. Qc2 {[%clk 0:01:13]}  Bf8 {[%clk 0:00:35]} 27. Ne5 {[%clk 0:01:08]}  Kg7 {[%clk 0:00:28]} 28. Bf4 {[%clk 0:01:06]}  Nd7 {[%clk 0:00:25]} 29. Bxh6+ {[%clk 0:01:05]}  Kg8 {[%clk 0:00:24]} 30. Bxf8 {[%clk 0:01:05]}  Rxf8 {[%clk 0:00:17]} 31. Nf3 {[%clk 0:01:03]}  Qf6 {[%clk 0:00:16]} 32. Qd2 {[%clk 0:00:53]}  Rc8 {[%clk 0:00:15]} 33. Rc3 {[%clk 0:00:51]}  Qe7 {[%clk 0:00:14]} 34. Qf4 {[%clk 0:00:44]}  Qf6 {[%clk 0:00:12]} 35. Qd6 {[%clk 0:00:42]}  Nf8 {[%clk 0:00:11]} 36. Qc5 {[%clk 0:00:38]}  Ra6 {[%clk 0:00:11]} 37. Rb3 {[%clk 0:00:37]}  Qd8 {[%clk 0:00:09]} 38. Ne5 {[%clk 0:00:35]}  b6 {[%clk 0:00:09]} 39. Qc1 {[%clk 0:00:34]}  c5 {[%clk 0:00:08]} 40. dxc5 {[%clk 0:00:31]}  Rxc5 {[%clk 0:00:09]} 41. Qf4 {[%clk 0:00:31]}  Qe7 {[%clk 0:00:08]} 42. exd5 {[%clk 0:00:27]}  Rxd5 {[%clk 0:00:09]} 43. Rc3 {[%clk 0:00:25]}  Nh7 {[%clk 0:00:06]} 44. Qh6 {[%clk 0:00:19]}  Qf8 {[%clk 0:00:05]} 45. Qf4 {[%clk 0:00:18]}  Qe7 {[%clk 0:00:02]} 46. Rc8+ {[%clk 0:00:18]}  Kg7 {[%clk 0:00:02]} 47. Rec1 {[%clk 0:00:18]}  Nf6 {[%clk 0:00:02]} 48. R1c7 {[%clk 0:00:18]}  Nd7 {[%clk 0:00:03]} 49. Nxd7 {[%clk 0:00:17]}  Rxd7 {[%clk 0:00:04]} 50. Qe5+ {[%clk 0:00:17]}  f6 {[%clk 0:00:03]} 51. Rxd7 {[%clk 0:00:17]}  Qxd7 {[%clk 0:00:04]} 52. Rc7 {[%clk 0:00:15]}  fxe5 {[%clk 0:00:04]} 53. Rxd7+ {[%clk 0:00:16]}  Kf6 {[%clk 0:00:05]} 54. Rb7 {[%clk 0:00:15]}  e4 {[%clk 0:00:04]} 55. dxe4 {[%clk 0:00:15]}  Ke5 {[%clk 0:00:04]} 56. f3 {[%clk 0:00:15]}  Kf4 {[%clk 0:00:05]} 57. Kf2 {[%clk 0:00:15]}  Ke5 {[%clk 0:00:05]} 58. g3 {[%clk 0:00:16]}  Kd6 {[%clk 0:00:06]} 59. Ke3 {[%clk 0:00:16]}  Kc6 {[%clk 0:00:06]} 60. Rg7 {[%clk 0:00:16]}  b5 {[%clk 0:00:07]} 61. axb5+ {[%clk 0:00:15]}  Kxb5 {[%clk 0:00:08]} 62. Rxg6 {[%clk 0:00:16]}  Rb6 {[%clk 0:00:08]} 63. h5 {[%clk 0:00:16]}  Kc4 {[%clk 0:00:09]} 64. h6 {[%clk 0:00:16]}  Rb3+ {[%clk 0:00:09]} 65. Kf4 {[%clk 0:00:15]}  Rxb2 {[%clk 0:00:09]} 66. Rxe6 {[%clk 0:00:15]}  Rb8 {[%clk 0:00:10]} 67. h7 {[%clk 0:00:13]}  Rh8 {[%clk 0:00:10]} 68. Re7 {[%clk 0:00:14]}  a4 {[%clk 0:00:11]} 69. Kg5 {[%clk 0:00:14]}  a3 {[%clk 0:00:11]} 70. Kg6 {[%clk 0:00:14]}  Ra8 {[%clk 0:00:11]} 71. Rc7+ {[%clk 0:00:13]}  Kd3 {[%clk 0:00:10]} 72. Rc1 {[%clk 0:00:13]}  Ke3 {[%clk 0:00:10]} 73. Ra1 {[%clk 0:00:12]}  Kxf3 {[%clk 0:00:11]} 74. Rxa3+ {[%clk 0:00:12]}  Rxa3 {[%clk 0:00:10]} 75. h8=Q {[%clk 0:00:12]}  Kxg3 {[%clk 0:00:09]} 76. Qf6 {[%clk 0:00:11]}  Rf3 {[%clk 0:00:09]} 77. Qxf3+ {[%clk 0:00:10]}  Kxf3 {[%clk 0:00:09]} 78. e5 {[%clk 0:00:11]}  Kf4 {[%clk 0:00:10]} 79. e6 {[%clk 0:00:11]}  Ke5 {[%clk 0:00:10]} 80. e7 {[%clk 0:00:12]}  Kd6 {[%clk 0:00:11]} 81. e8=Q {[%clk 0:00:12]}  Kc7 {[%clk 0:00:12]} 82. Qe6 {[%clk 0:00:12]}  Kd8 {[%clk 0:00:12]} 83. Qf7 {[%clk 0:00:11]}  Kc8 {[%clk 0:00:13]} 84. Kf6 {[%clk 0:00:12]}  Kd8 {[%clk 0:00:14]} 85. Ke6 {[%clk 0:00:12]}  Kc8 {[%clk 0:00:15]} 86. Kd6 {[%clk 0:00:13]}  Kb8 {[%clk 0:00:15]} 87. Kc6 {[%clk 0:00:13]}  Kc8 {[%clk 0:00:16]} 88. Qe8# {[%clk 0:00:13]} 1-0


[Site "https://www.chess.com"]

[Event "Titled Tuesday Blitz April 11 Late 2023"]
[White "Dilmukhametov, Artur"]
[Black "Goroshkov, Maksym"]
[WhiteFideId "24179922"]
[BlackFideId "14142716"]
[WhiteElo "2199"]
[BlackElo "2322"]
[Result "0-1"]
[Round "01"]
[TimeControl "180+2"]
[Date "2023.04.11"]
[WhiteClock "0:00:11"]
[BlackClock "0:00:15"]

1. e4 {[%clk 0:02:59]}  e6 {[%clk 0:03:00]} 2. Nf3 {[%clk 0:02:56]}  d5 {[%clk 0:03:00]} 3. e5 {[%clk 0:02:57]}  c5 {[%clk 0:03:00]} 4. b4 {[%clk 0:02:58]}  cxb4 {[%clk 0:03:00]} 5. a3 {[%clk 0:02:58]}  bxa3 {[%clk 0:03:00]} 6. d4 {[%clk 0:02:58]}  Nc6 {[%clk 0:02:59]} 7. c3 {[%clk 0:02:58]}  Nh6 {[%clk 0:02:53]} 8. Bd3 {[%clk 0:02:57]}  Nf5 {[%clk 0:02:52]} 9. Nxa3 {[%clk 0:02:57]}  h5 {[%clk 0:02:48]} 10. O-O {[%clk 0:02:48]}  Be7 {[%clk 0:02:48]} 11. Nb5 {[%clk 0:02:47]}  O-O {[%clk 0:02:47]} 12. Bxf5 {[%clk 0:02:45]}  exf5 {[%clk 0:02:48]} 13. Bf4 {[%clk 0:02:37]}  g5 {[%clk 0:02:44]} 14. Bc1 {[%clk 0:02:32]}  f4 {[%clk 0:02:32]} 15. Qc2 {[%clk 0:02:30]}  g4 {[%clk 0:02:28]} 16. Ne1 {[%clk 0:02:25]}  a6 {[%clk 0:02:25]} 17. Bxf4 {[%clk 0:02:23]}  Bg5 {[%clk 0:02:17]} 18. Bxg5 {[%clk 0:02:23]}  Qxg5 {[%clk 0:02:18]} 19. Nd6 {[%clk 0:02:23]}  Be6 {[%clk 0:02:15]} 20. f4 {[%clk 0:02:20]}  gxf3 {[%clk 0:02:13]} 21. Rxf3 {[%clk 0:02:20]}  h4 {[%clk 0:02:05]} 22. Nxb7 {[%clk 0:02:13]}  Rac8 {[%clk 0:01:59]} 23. Nc5 {[%clk 0:02:12]}  Nxe5 {[%clk 0:01:58]} 24. Rf2 {[%clk 0:02:07]}  Ng4 {[%clk 0:01:54]} 25. Rf1 {[%clk 0:02:02]}  Qe3+ {[%clk 0:01:37]} 26. Kh1 {[%clk 0:02:00]}  f5 {[%clk 0:01:23]} 27. h3 {[%clk 0:01:57]}  Nf6 {[%clk 0:01:19]} 28. Rxa6 {[%clk 0:01:33]}  Rxc5 {[%clk 0:01:14]} 29. dxc5 {[%clk 0:01:33]}  Ne4 {[%clk 0:01:14]} 30. Kh2 {[%clk 0:01:24]}  Qg3+ {[%clk 0:01:09]} 31. Kh1 {[%clk 0:01:24]}  Qe5 {[%clk 0:01:08]} 32. Nf3 {[%clk 0:01:18]}  Ng3+ {[%clk 0:01:08]} 33. Kg1 {[%clk 0:01:17]}  Qe3+ {[%clk 0:01:07]} 34. Rf2 {[%clk 0:01:15]}  Rb8 {[%clk 0:01:02]} 35. Kh2 {[%clk 0:01:15]}  Bf7 {[%clk 0:00:54]} 36. c6 {[%clk 0:01:12]}  Qf4 {[%clk 0:00:46]} 37. Kg1 {[%clk 0:00:53]}  Re8 {[%clk 0:00:45]} 38. Ra1 {[%clk 0:00:52]}  Qd6 {[%clk 0:00:41]} 39. Qa4 {[%clk 0:00:44]}  Ne2+ {[%clk 0:00:28]} 40. Rxe2 {[%clk 0:00:44]}  Rxe2 {[%clk 0:00:28]} 41. Qxh4 {[%clk 0:00:44]}  Qxc6 {[%clk 0:00:25]} 42. Qg3+ {[%clk 0:00:44]}  Kf8 {[%clk 0:00:24]} 43. Ra7 {[%clk 0:00:43]}  Qc5+ {[%clk 0:00:23]} 44. Kf1 {[%clk 0:00:37]}  Re8 {[%clk 0:00:16]} 45. Rc7 {[%clk 0:00:31]}  Qe3 {[%clk 0:00:13]} 46. Qd6+ {[%clk 0:00:28]}  Kg8 {[%clk 0:00:14]} 47. Qf6 {[%clk 0:00:28]}  Qe6 {[%clk 0:00:11]} 48. Qg5+ {[%clk 0:00:26]}  Qg6 {[%clk 0:00:10]} 49. Qxg6+ {[%clk 0:00:20]}  Bxg6 {[%clk 0:00:11]} 50. Rc5 {[%clk 0:00:20]}  Bf7 {[%clk 0:00:11]} 51. Nd4 {[%clk 0:00:20]}  Re4 {[%clk 0:00:12]} 52. Kf2 {[%clk 0:00:19]}  f4 {[%clk 0:00:12]} 53. Kf3 {[%clk 0:00:19]}  Bh5+ {[%clk 0:00:12]} 54. g4 {[%clk 0:00:16]}  fxg3+ {[%clk 0:00:12]} 55. Kxg3 {[%clk 0:00:17]}  Bf7 {[%clk 0:00:12]} 56. Nf3 {[%clk 0:00:15]}  Re3 {[%clk 0:00:12]} 57. Kf4 {[%clk 0:00:15]}  Rd3 {[%clk 0:00:12]} 58. Ne5 {[%clk 0:00:15]}  Rxh3 {[%clk 0:00:12]} 59. Nxf7 {[%clk 0:00:16]}  Kxf7 {[%clk 0:00:12]} 60. Ke5 {[%clk 0:00:16]}  Rh5+ {[%clk 0:00:12]} 61. Kd4 {[%clk 0:00:16]}  Ke6 {[%clk 0:00:12]} 62. Rc6+ {[%clk 0:00:17]}  Kd7 {[%clk 0:00:13]} 63. Rg6 {[%clk 0:00:17]}  Rf5 {[%clk 0:00:13]} 64. Rg3 {[%clk 0:00:16]}  Kd6 {[%clk 0:00:12]} 65. Rg6+ {[%clk 0:00:16]}  Kd7 {[%clk 0:00:12]} 66. Kc5 {[%clk 0:00:17]}  Rh5 {[%clk 0:00:12]} 67. Rg3 {[%clk 0:00:16]}  Ke6 {[%clk 0:00:11]} 68. Re3+ {[%clk 0:00:16]}  Kd7 {[%clk 0:00:12]} 69. Rd3 {[%clk 0:00:16]}  Ke6 {[%clk 0:00:12]} 70. Re3+ {[%clk 0:00:16]}  Kd7 {[%clk 0:00:12]} 71. Kd4 {[%clk 0:00:16]}  Kd6 {[%clk 0:00:12]} 72. Rf3 {[%clk 0:00:15]}  Rh4+ {[%clk 0:00:13]} 73. Kd3 {[%clk 0:00:16]}  Kc5 {[%clk 0:00:13]} 74. Re3 {[%clk 0:00:16]}  Ra4 {[%clk 0:00:13]} 75. Rg3 {[%clk 0:00:15]}  Ra3 {[%clk 0:00:14]} 76. Rg5 {[%clk 0:00:13]}  Ra1 {[%clk 0:00:13]} 77. c4 {[%clk 0:00:11]}  Ra3+ {[%clk 0:00:13]} 78. Kc2 {[%clk 0:00:11]}  Kxc4 {[%clk 0:00:13]} 79. Rg8 {[%clk 0:00:11]}  Rh3 {[%clk 0:00:13]} 80. Rc8+ {[%clk 0:00:11]}  Kd4 {[%clk 0:00:13]} 81. Rg8 {[%clk 0:00:11]}  Rh2+ {[%clk 0:00:13]} 82. Kd1 {[%clk 0:00:11]}  Kc3 {[%clk 0:00:13]} 83. Rg3+ {[%clk 0:00:12]}  Kc4 {[%clk 0:00:14]} 84. Rg8 {[%clk 0:00:12]}  d4 {[%clk 0:00:11]} 85. Rc8+ {[%clk 0:00:12]}  Kd3 {[%clk 0:00:12]} 86. Ke1 {[%clk 0:00:13]}  Rh1+ {[%clk 0:00:12]} 87. Kf2 {[%clk 0:00:13]}  Kd2 {[%clk 0:00:13]} 88. Ra8 {[%clk 0:00:13]}  d3 {[%clk 0:00:13]} 89. Ra2+ {[%clk 0:00:13]}  Kc3 {[%clk 0:00:13]} 90. Ra3+ {[%clk 0:00:14]}  Kc2 {[%clk 0:00:14]} 91. Ra2+ {[%clk 0:00:14]}  Kb3 {[%clk 0:00:14]} 92. Rd2 {[%clk 0:00:12]}  Kc3 {[%clk 0:00:14]} 93. Ra2 {[%clk 0:00:10]}  d2 {[%clk 0:00:14]} 94. Ra3+ {[%clk 0:00:11]}  Kb2 {[%clk 0:00:15]} 0-1


[Site "https://www.chess.com"]